Cogmind - Beta 14 @@@ ROGUE MODE // 2024.10.15 @ 23:05:22 Player: Kat Result: Self-destructed Performance ------------- Evolutions (2) 1000 Regions Visited (5) 1000 Robots Destroyed (9) 45 Value Destroyed (318) 318 Prototype IDs (0) 0 Alien Tech Used (0) 0 Bonus (300) 300 TOTAL SCORE: 2663 Bonus ------- Aligned with FarCom 300 Cogmind --------- Core Integrity 489/550 Matter 300/300 Energy 100/100 System Corruption 0% Temperature Cool (0) Movement Core (3350) Ox66 Location -8/Materials Parts ------- > --- POWER (2) -------- (None) > --- PROPULSION (4) --- (None) > --- UTILITY (3) ------ Humpback > --- WEAPON (2) ------- Small Laser > --- INVENTORY (35) --- Light Fission Core Light Fission Core Small Battery (100) Medium Laser Grenade Launcher Grenade Launcher Peak State ------------ > --- POWER ------------ Light Ion Engine > --- PROPULSION ------- Wheel Compact Wheel > --- UTILITY ---------- Small Storage Unit Sensor Array > --- WEAPON ----------- EM Pulse Gun Medium Laser > --- INVENTORY -------- Ion Engine Light Fission Core Light Fission Core Beam Cannon Grenade Launcher Grenade Launcher [Rating: 8] Favorites ----------- Power Ion Engine Engine Ion Engine Propulsion Aluminum Leg Leg Aluminum Leg Wheel Wheel Utility Humpback Device Sensor Array Storage Humpback Weapon Medium Laser Energy Gun Medium Laser Energy Cannon Beam Cannon Launcher Grenade Launcher Build | -11 -10 -10 -10 -9 -8 ------- Run | Yrd Mat Min Exi Min Mat Slots Evolved 4 | . . . . . 4 Power 1 | . . . . . 1 Propulsion 2 | . . . . . 2 Utility 1 | . . . . . 1 Weapon . | . . . . . . Parts Attached 15 | 6 . 1 2 5 1 Power 2 | 1 . . 1 . . Engine 2 | 1 . . 1 . . Core . | . . . . . . Reactor . | . . . . . . Propulsion 4 | 2 . . . 2 . Treads . | . . . . . . Leg 2 | . . . . 2 . Wheel 2 | 2 . . . . . Hover . | . . . . . . Flight . | . . . . . . Utility 4 | 1 . 1 1 . 1 Device 2 | . . 1 . . 1 Storage 2 | 1 . . 1 . . Processor . | . . . . . . Hackware . | . . . . . . Protection . | . . . . . . Artifact . | . . . . . . Weapon 5 | 2 . . . 3 . Energy Gun 3 | 2 . . . 1 . Energy Cannon 1 | . . . . 1 . Ballistic Gun . | . . . . . . Ballistic Cannon . | . . . . . . Launcher 1 | . . . . 1 . Special Weapon . | . . . . . . Impact Weapon . | . . . . . . Slashing Weapon . | . . . . . . Piercing Weapon . | . . . . . . Special Melee Weapon . | . . . . . . Unidentified Prototypes . | . . . . . . Parts Lost 7 | . . . . 4 3 Power 1 | . . . . 1 . Propulsion 3 | . . . . 2 1 Utility 1 | . . . . . 1 Weapon 2 | . . . . 1 1 Highest Loss Streak 3 | . . . . 2 3 To Critical Strikes . | . . . . . . Average Slot Usage (%) 74 | . 85 91 86 68 44 Engine 11 | . 14 14 14 11 . Leg 6 | . . . . 12 8 Wheel 13 | . 28 28 28 . . Device 1 | . . 5 1 . 9 Storage 13 | . 14 14 14 14 9 Energy Gun 20 | . 28 28 28 14 9 Energy Cannon 4 | . . . . 8 8 Launcher 2 | . . . . 5 . Peak Build Rating 8 | 6 6 7 8 8 7 Average Rating 7 | 4 6 6 7 6 6 On Entrance 5 | . 6 6 7 8 6 Naked Turns . | . . . . . . Heaviest Build 210 | 12 12 13 209 210 205 Greatest Support 26 | 26 26 26 26 26 10 Greatest Overweight (x) 69 | 1 . . 8 69 20 Average Overweight (x) 6 | . . . 6 60 20 Largest Inventory Capacity 35 | 8 8 8 35 35 35 Average Capacity 30 | 6 8 8 31 35 35 Most Carried 8 | 2 2 5 7 8 6 Average Carried 6 | . 1 3 6 6 6 Final Capacity 35 | 8 8 8 35 35 35 Final Carried 7 | . 2 4 7 7 6 Class Distribution -------------------- 76% | Hauler-Mutant 15% | Mutant 7% | Hauler-Skirmisher Dominant Class ---------------- Mutant | -10/Materials Mutant | -10/Mines Hauler-Mutant | -10/Exiles Hauler-Mutant | -9/Mines Hauler-Skirmisher | -8/Materials Resources | -11 -10 -10 -10 -9 -8 ----------- Run | Yrd Mat Min Exi Min Mat Matter Collected 400 | 203 30 37 . 130 . Remotely . | . . . . . . Salvage Created 298 | . . . . 298 . Parts 16 | . . . . 16 . Haulers Intercepted . | . . . . . . Recyclers Shooed . | . . . . . . Parts Field Recycled . | . . . . . . Retrieved Matter . | . . . . . . Parts Self-Destructed . | . . . . . . Prevented . | . . . . . . Kills | -11 -10 -10 -10 -9 -8 ------- Run | Yrd Mat Min Exi Min Mat Combat Hostiles Destroyed 8 | . . . . 8 . Guns 2 | . . . . 2 . Cannons 1 | . . . . 1 . AOE 5 | . . . . 5 . Classes Destroyed 3 | . . . . 3 . Tunneler 1 | . . . . 1 . Grunt 6 | . . . . 6 . Duelist 2 | . . . . 2 . Best Kill Streak 4 | . . . . 4 . Combat Bots Only 3 | . . . . 3 . Max Kills in Single Turn 2 | . . . . 2 . Gunslinging . | . . . . . . Exploded 2 | . . . . 2 . Melee . | . . . . . . Uniques/NPCs Destroyed . | . . . . . . Combat | -11 -10 -10 -10 -9 -8 -------- Run | Yrd Mat Min Exi Min Mat Hostile Shots Fired 90 | . . . . 62 28 Missed 25 | . . . . 18 7 Damage Taken 1161 | . 14 . . 836 311 Core 303 | . . . . 242 61 Absorbed by Shields . | . . . . . . Core Remaining (%) 51 | 100 . . . 3 . Volleys Fired 22 | . . . 2 20 . Largest 2 | . . . 2 2 . Hottest 100 | . . . 90 100 . Shots Fired 39 | . . . 4 35 . Gun 26 | . . . 4 22 . Cannon 6 | . . . . 6 . Launcher 7 | . . . . 7 . Special . | . . . . . . Kinetic . | . . . . . . Thermal 28 | . . . 2 26 . Explosive 7 | . . . . 7 . Electromagnetic 4 | . . . 2 2 . Robot Hit Streak 8 | . . . . 8 . Robot Miss Streak 3 | . . . . 3 . Penetration Max . | . . . . . . Secondary Targets . | . . . . . . Shots Hit Robots 24 | . . . . 24 . Core Hits 16 | . . . . 16 . Critical Kills . | . . . . . . Critical Parts Destroyed . | . . . . . . Critical Strikes . | . . . . . . Melee Attacks . | . . . . . . Impact . | . . . . . . Slashing . | . . . . . . Piercing . | . . . . . . Sneak Attacks . | . . . . . . Combat Hostiles . | . . . . . . Follow-up Attacks . | . . . . . . Damage Inflicted 540 | . . . . 540 . Guns 184 | . . . . 184 . Cannons 68 | . . . . 68 . Explosions 288 | . . . . 288 . Melee . | . . . . . . Ramming . | . . . . . . Kinetic . | . . . . . . Thermal 229 | . . . . 229 . Explosive 288 | . . . . 288 . Electromagnetic 23 | . . . . 23 . Impact . | . . . . . . Slashing . | . . . . . . Piercing . | . . . . . . Highest Corruption . | . . . . . . Average Corruption . | . . . . . . Corruption Purged . | . . . . . . Corruption Blocked . | . . . . . . Overload Shots . | . . . . . . Overflow Damage . | . . . . . . Projectiles . | . . . . . . Explosions . | . . . . . . Melee . | . . . . . . Knockbacks . | . . . . . . Impact . | . . . . . . Kinetic . | . . . . . . Secondary . | . . . . . . Self-Inflicted Damage 158 | . . . . 158 . Shots 6 | . . . . 6 . Rammed . | . . . . . . Targets Rammed 1 | . . . . . 1 Kicked 1 | . . . . . 1 Crushed . | . . . . . . Highest Temperature 212 | . . . 30 212 . Average Temperature 75 | . . . 17 81 . Received Heat Transfer 369 | . . . . 252 117 Siege Activations . | . . . . . . Robots Corrupted . | . . . . . . Combat Hostiles . | . . . . . . Parts Fried . | . . . . . . Impact Corruptions . | . . . . . . Robots Melted . | . . . . . . Combat Hostiles . | . . . . . . Parts Melted . | . . . . . . Heat Transferred 593 | . . . . 593 . Parts Sabotaged . | . . . . . . Parts Stolen . | . . . . . . Parts Stripped . | . . . . . . Power Chain Reactions . | . . . . . . Alert | -11 -10 -10 -10 -9 -8 ------- Run | Yrd Mat Min Exi Min Mat Peak Influence 99 | . . . . 99 7 Initial 7 | . . . . . 7 Average 22 | . . . . 31 6 Maximum Alert Level . | . . . . . . Low Security (%) 100 | 100 100 100 . 100 100 Level 1 . | . . . . . . Level 2 . | . . . . . . Level 3 . | . . . . . . Level 4 . | . . . . . . Level 5 . | . . . . . . High Security . | . . . . . . Max Security . | . . . . . . Squads Dispatched 1 | . . . . . 1 Investigation . | . . . . . . Extermination . | . . . . . . Reinforcement 1 | . . . . . 1 Assault . | . . . . . . Garrison . | . . . . . . Intercept . | . . . . . . Searches Triggered . | . . . . . . Construction Impeded . | . . . . . . Haulers Reinforced . | . . . . . . Active Scanning Responses . | . . . . . . Cargo Convoy Interrupts . | . . . . . . Stealth | -11 -10 -10 -10 -9 -8 --------- Run | Yrd Mat Min Exi Min Mat Distress Signals 1 | . . . . . 1 Communications Jammed . | . . . . . . Distress Signals . | . . . . . . Times Spotted 14 | . 4 . . 9 1 Peak Tracking Total 3 | . 2 . . 3 2 Tactical Retreats 1 | . . . . 1 . Traps | -11 -10 -10 -10 -9 -8 ------- Run | Yrd Mat Min Exi Min Mat Traps Triggered . | . . . . . . Indirectly . | . . . . . . Trap Hack Attempts . | . . . . . . Triggered . | . . . . . . Disarmed . | . . . . . . Reprogrammed . | . . . . . . Reused . | . . . . . . Traps Extracted . | . . . . . . Installed . | . . . . . . Triggered . | . . . . . . Machines | -11 -10 -10 -10 -9 -8 ---------- Run | Yrd Mat Min Exi Min Mat Machines Disabled . | . . . . . . Max in Single Turn . | . . . . . . Machines Repaired . | . . . . . . Machines Dismantled . | . . . . . . Machines Sabotaged . | . . . . . . Overloaded Fab Kills . | . . . . . . Hacking | -11 -10 -10 -10 -9 -8 --------- Run | Yrd Mat Min Exi Min Mat Machines Accessed 1 | . . . 1 . . Terminals . | . . . . . . Fabricators . | . . . . . . Repair Stations . | . . . . . . Recycling Units . | . . . . . . Scanalyzers . | . . . . . . Garrison Access . | . . . . . . Total Hacks 1 | . . . 1 . . Successful 1 | . . . 1 . . Failed . | . . . . . . Catastrophic . | . . . . . . Database Lockouts . | . . . . . . Manual 1 | . . . 1 . . Terminals . | . . . . . . Fabricators . | . . . . . . Repair Stations . | . . . . . . Recycling Units . | . . . . . . Scanalyzers . | . . . . . . Garrison Access . | . . . . . . Terminal Hacks 1 | . . . 1 . . Record 1 | . . . 1 . . Fabricator Hacks . | . . . . . . Repair Station Hacks . | . . . . . . Recycling Unit Hacks . | . . . . . . Scanalyzer . | . . . . . . Garrison Access Hacks . | . . . . . . Unauthorized Hacks . | . . . . . . Terminals . | . . . . . . Fabricators . | . . . . . . Repair Stations . | . . . . . . Recycling Units . | . . . . . . Scanalyzers . | . . . . . . Garrison Access . | . . . . . . Data Cores Recovered . | . . . . . . Used . | . . . . . . Hacking Detections . | . . . . . . Full Trace Events . | . . . . . . Feedback Events . | . . . . . . Feedback Blocked . | . . . . . . Robot Schematics Acquired . | . . . . . . Robots Built . | . . . . . . Authchips . | . . . . . . Time . | . . . . . . Total Robot Build Rating . | . . . . . . Part Schematics Acquired . | . . . . . . Parts Built . | . . . . . . Authchips . | . . . . . . Time . | . . . . . . Total Part Build Rating . | . . . . . . Parts Repaired . | . . . . . . Time . | . . . . . . Parts Recycled . | . . . . . . Recycled Matter . | . . . . . . Retrieved Matter . | . . . . . . Retrieved Components . | . . . . . . Parts Scanalyzed . | . . . . . . Part Schematics Acquired . | . . . . . . Parts Damaged . | . . . . . . Bothacking | -11 -10 -10 -10 -9 -8 ------------ Run | Yrd Mat Min Exi Min Mat Used RIF Installer . | . . . . . . Robots Hacked . | . . . . . . Non-combat . | . . . . . . Combat . | . . . . . . Robot Hacks Applied . | . . . . . . Relay Couplers Released . | . . . . . . Fabnet Peak Effective % . | . . . . . . Robots Rewired . | . . . . . . Allies Hacked . | . . . . . . Hacks Repelled . | . . . . . . Allies | -11 -10 -10 -10 -9 -8 -------- Run | Yrd Mat Min Exi Min Mat Total Allies . | . . . . . . Largest Group . | . . . . . . Highest-Rated Group . | . . . . . . Highest-Rated Ally . | . . . . . . Total Orders . | . . . . . . Ally Attacks . | . . . . . . Total Damage . | . . . . . . Kills . | . . . . . . Allies Corrupted . | . . . . . . Allies Melted . | . . . . . . Intel | -11 -10 -10 -10 -9 -8 ------- Run | Yrd Mat Min Exi Min Mat Robot Analysis Total . | . . . . . . Derelict Logs Recovered 2 | . . 1 . 1 . Drone Launches . | . . . . . . Drone Recoveries . | . . . . . . Exploration | -11 -10 -10 -10 -9 -8 ------------- Run | Yrd Mat Min Exi Min Mat Turns Passed 4057 | 64 208 193 1449 1807 336 Spaces Moved 1257 | 51 165 182 781 57 21 Core 60 | 13 . . . 47 . Treads . | . . . . . . Legs 28 | . . . . 7 21 Wheels 1169 | 38 165 182 781 3 . Hover . | . . . . . . Flight . | . . . . . . Fastest Speed 50 | 50 90 90 90 195 1520 Average Speed 306 | 83 90 90 182 3080 1520 Slowest Speed 3500 | 100 90 90 210 3500 1520 Overloaded Moves . | . . . . . . Propulsion Burnouts . | . . . . . . Robots Hopped . | . . . . . . Cave-ins Triggered . | . . . . . . Exploration Rate (%) 33 | 3 32 61 90 12 4 Regions Visited 5 Branch Regions 3 Pre-discovered Areas 1 | . . 1 . . . Known Exits Taken . | . . . . . . Unknown Exits Taken 5 | 1 1 1 1 1 . Scrap Searched 2 | . . 2 . . . Spaces Dug . | . . . . . . Terrain Destroyed 64 | . . . . 64 . Melee . | . . . . . . Projectile . | . . . . . . AOE 64 | . . . . 64 . Terrain Rammed . | . . . . . . Walls Destroyed . | . . . . . . Machines Disabled . | . . . . . . Actions | -11 -10 -10 -10 -9 -8 --------- Run | Yrd Mat Min Exi Min Mat Total 1417 | 72 224 211 800 87 23 Wait 94 | 10 58 26 . . . Move 1252 | 50 164 181 780 56 21 Hop . | . . . . . . Pick Up 22 | 6 2 3 7 4 . Fast Attach . | . . . . . . Attach 13 | 6 . 1 2 3 1 Detach . | . . . . . . Swap 2 | . . . . 2 . Drop 5 | . . . 3 2 . Fire 22 | . . . 2 20 . Melee . | . . . . . . Ram . | . . . . . . Kick 1 | . . . . . 1 Crush . | . . . . . . Escape Stasis . | . . . . . . Rewire 6 | . . . 6 . . Trap . | . . . . . . Miscellaneous . | . . . . . . Route ------- -11/Scrapyard -10/Materials (discovered 2 exits: [*Mat] / [*Min]) -10/Mines (discovered 2 exits: [*Mat] / *Exi) -10/Exiles -9/Mines -8/Materials History --------- Turn | Location | Event 6 | -11/Scrapyard | Discovered new exit (range 15) 65 | -11/Scrapyard | Entered Materials 152 | -10/Materials | Met 8R-AWN 188 | -10/Materials | Discovered new exit (range 5) 266 | -10/Materials | Discovered new exit (range 7) 273 | -10/Materials | Entered Mines 274 | -10/Mines | Followed 8R-AWN into the Mines 281 | -10/Mines | YI-UF0 nonchalantly dropped a Grenade Launcher on the ground 313 | -10/Mines | Build established: Mutant 367 | -10/Mines | Discovered new exit (range 4) 463 | -10/Mines | Discovered new exit (range 5) 466 | -10/Mines | Entered Exiles 491 | -10/Exiles | Welcomed by 8R-AWN 514 | -10/Exiles | Met EX-HEX 564 | -10/Exiles | Met EX-DEC 689 | -10/Exiles | Discovered new exit (range 14) 829 | -10/Exiles | Met EX-BIN 861 | -10/Exiles | Aligned with FarCom system 863 | -10/Exiles | Given EX-Vault access code 939 | -10/Exiles | Build established: Hauler-Mutant 1304 | -10/Exiles | Visited The Gauntlet 1915 | -10/Exiles | Entered Mines 2552 | -9/Mines | Core integrity fell below 50% 3438 | -9/Mines | Core integrity fell below 20% 3661 | -9/Mines | Learned Materials emergency access door positions 3661 | -9/Mines | Discovered new exit (range 5) 3722 | -9/Mines | Entered Materials 3722 | -8/Materials | Evolved 4 slots: Power x1, Propulsion x2, Utility x1 4009 | -8/Materials | Build established: Hauler-Skirmisher 4058 | -8/Materials | Self-destructed Last Messages --------------- 03661_ Acquired derelict log, extracted data. Data stored: Materials emergency access points. 03661_ EXIT=FOUND PARAMETERS=POWER+1,PROPULSION+2,UTILITY+1 LOCATION=UNKNOWN GOAL=ESCAPE 03722_ Receiving FarCom transmissions... Loading Materials emergency access points (x3)... 03910_ K-01 Serf collects debris. 04002_ W-25 Informer sends out distress signal. 04023_ U-05 Engineer builds a Door. 04027_ Kicked U-05 Engineer out of the way. 04032_ Beam Cannon destroyed. 04042_ U-05 Engineer builds a Door. 04046_ Aluminum Leg destroyed. 04048_ ALERT: Suspicious intruders detected, dispatching Cutter reinforcements to area. 04052_ Critical hit (Burn: +37). 04052_ Sensor Array destroyed. Map ----- +----------------------------------------------------+ | | | ?????????????????????????????????????????????????? | | ?????????????????????????????????????????????????? | | ?????????????????????????????????????????????????? | | ?????????????????????????????????????????????????? | | ?????????????????????????????????????????????????? | | ?????????????????????????????????????????????????? | | ?????????????????????????????????????????????????? | | ?????????????????????????????????????????????????? | | ?????????????????????????????????????????????????? | | ?????????????????????????????????????????????????? | | ?????????????????????????????????????????????????? | | ?????????????????????????????????????????????????? | | ?????????????????????????????????????????????????? | | ?????????????????????####????????????????????????? | | ?????????????????????# ????????????????????????? | | ?????????????Y???????# ????????????????????????? | | ?????????????????????# ""??????????????????????? | | ?????????????????????# """ ????????????????????? | | ?????????????????????# ????????????????????? | | ?????????????????????# """??????????????#####??? | | ?????????????????????# """??????????????# #??? | | ?????????????????????? ""???????????????# #??? | | ??????????????????????? ???????????????# #??? | | ?????????????????????#+##/################# #??? | | ?????????????????????# @ #??? | | ??????????????[ uY #??? | | ????????????# """ # #??? | | ????????????????"""??### ################## #??? | | ???????????????????????# ?????????????????# #??? | | ???????????????????????# ?????????????????# #??? | | ???????????????????????# ?????????????????# #??? | | ???????????????????????# ?????????????????# #??? | | ???????????????????????# ?????????????????# #??? | | ???????????????????????#??????????????????# #??? | | ?????????????????????????????????????????? ??? | | ??????????????????H??????????????????????? ??? | | ?????????????????????????????????????????? #?? | | ?????????????????????????????????????????? #?? | | ?????????????????????????????????????????? #?? | | ???????????????????????????????????????????###???? | | ?????????????????????????????????????????????????? | | ?????????????????????????????????????????????????? | | ?????????????????????????????????????????????????? | | ?????????????????????????????????????????????????? | | ?????????????????????????????????????????????????? | | ?????????????????????????????????????????????????? | | ?????????????????????????????????????????????????? | | ?????????????????????????????????????????????????? | | ?????????????????????????????????????????????????? | +----------------------------------------------------+ Best States ------------- Heat Dissipation 31 Energy Generation 10 Energy Capacity 250 Matter Stores 300 Matter Capacity 300 Sight Range 16 Robot Scan Range 14 Terrain Scan Density 10 Evasion (%) 42 Item Schematics ----------------- None Robot Schematics ------------------ None Fabricated ------------ Nothing Alien Tech Used ----------------- None Achievements -------------- None Challenges ------------ None Game ------ Seed FieldVisualProjector Manual? 0 Play Time 00:13:13 Cumulative 7.2 hours Start 2024.10.15 @ 22:51:04 End 2024.10.15 @ 23:05:22 Sessions 1 Manual Loads 0 Difficulty Rogue Special Mode None Game No. 28 Rogue 28 Adventurer 0 Explorer 0 Win Type - Total 0 Types 0/0/0/0/0/0/0/0/0 Lore% 4 Gallery% 18 Achievement% 17 Wizard Run 0 Options --------- Layout 1 ASCII 0 Keyboard 0 Movement Mouse Keybinds 0 Fullscreen 1 Font 24/Smallcaps Map View 50x35 Zoom Use 0% Tactical HUD 1 Map Filters NONE Filters NONE Steam 1 RUN: d0516133-30dc-4e3e-8abb-b56bef976291